bitfinex-derivatives/quotes_BTCF0:USTF0_20250930
["timestamp","ask_amount","ask_price","bid_price","bid_amount"]
[1759193528279,0.53406616,114630.0,114620.0,0.3608]
[1759193529484,0.54606616,114630.0,114620.0,0.3608]
[1759193529679,0.0871899,114620.0,114610.0,0.4479972]
[1759193529886,0.1218999,114620.0,114610.0,0.3608]
[1759193530286,0.1219075,114610.0,114600.0,0.6808]
[1759193530484,0.01329,114600.0,114590.0,0.47894253]
[1759193530689,0.1219151,114600.0,114590.0,0.39173413]
[1759193530881,0.1219151,114600.0,114590.0,0.77894683]
[1759193531283,0.1219151,114600.0,114590.0,0.7480127]
[1759193531483,0.12525986,114600.0,114590.0,0.7480127]
[1759193531792,0.03805476,114600.0,114590.0,0.7480127]
[1759193532891,0.03805476,114600.0,114590.0,0.4530127]
[1759193533089,0.03805476,114600.0,114590.0,0.4480127]
[1759193533287,0.03805476,114600.0,114590.0,0.4510127]
[1759193534593,0.03805476,114600.0,114590.0,0.3638]
[1759193534890,0.03805476,114600.0,114590.0,0.4510126]
[1759193535694,0.10675368,114600.0,114590.0,0.3638]
[1759193536192,0.10675368,114600.0,114590.0,0.4510126]
[1759193536594,0.19395868,114600.0,114590.0,0.3638]
[1759193536995,0.19395868,114600.0,114590.0,0.4510126]
[1759193537597,0.10675368,114600.0,114590.0,0.4510126]
[1759193538298,0.10675368,114600.0,114590.0,0.0902126]
[1759193538591,0.00334476,114600.0,114590.0,0.91315779]
[1759193538797,0.00334476,114600.0,114590.0,1.24409192]
[1759193538990,0.00374476,114600.0,114590.0,1.21315779]
[1759193539192,0.0008,114620.0,114610.0,0.0871974]
[1759193539496,0.01305,114640.0,114630.0,0.0871822]
[1759193539696,0.01385,114640.0,114630.0,0.0871822]
[1759193539895,0.01305,114620.0,114610.0,0.5412038]
[1759193540101,0.01305,114620.0,114610.0,1.4600438]
[1759193540293,0.01305,114620.0,114610.0,0.5412038]
[1759193540600,0.04522,114620.0,114610.0,1.03721861]
[1759193540897,0.04522,114620.0,114610.0,0.11825861]
[1759193541091,0.04522,114620.0,114610.0,1.03721861]
[1759193541293,0.009,114620.0,114610.0,1.8601638]
[1759193541498,0.009,114620.0,114610.0,1.90652611]
[1759193541699,0.0094,114620.0,114610.0,1.90652611]
[1759193541999,0.009,114620.0,114610.0,1.90652611]
[1759193542293,0.0094,114620.0,114610.0,1.90652611]
[1759193542605,0.009,114620.0,114610.0,1.8754649]
[1759193542792,0.0094,114620.0,114610.0,1.8754649]
[1759193542994,0.009,114620.0,114610.0,1.8754649]
[1759193543191,0.01305,114650.0,114640.0,0.0871738]
[1759193543390,0.01305,114650.0,114640.0,1.42887899]
[1759193543593,0.03622,114650.0,114640.0,0.51011899]
[1759193543787,0.03662,114650.0,114640.0,0.0871738]
[1759193544300,0.10528896,114650.0,114640.0,0.0871738]
[1759193544693,0.11728896,114650.0,114640.0,0.0871738]
[1759193544889,0.02545,114650.0,114640.0,0.51011899]
[1759193545199,0.02545,114650.0,114640.0,0.9411911]
[1759193545390,0.01345,114650.0,114640.0,0.9411911]
[1759193545587,0.03005,114650.0,114640.0,0.98755341]
[1759193545802,0.03045,114650.0,114640.0,0.98755341]
[1759193546605,0.01305,114670.0,114660.0,0.0871533]
[1759193546799,0.01385,114670.0,114660.0,0.0871533]
[1759193547108,0.03622,114660.0,114650.0,0.03105735]
[1759193547305,0.01305,114650.0,114640.0,0.16458176]
[1759193547706,0.01305,114650.0,114640.0,1.04980441]
[1759193548007,0.01305,114650.0,114640.0,0.96264231]
[1759193548206,0.01305,114650.0,114640.0,0.50119048]
[1759193548401,0.03622,114650.0,114640.0,0.07742186]
[1759193548600,0.1233805,114650.0,114640.0,0.39881955]
[1759193548797,0.03622,114650.0,114640.0,0.39881955]
[1759193549101,0.03622,114650.0,114640.0,0.03105955]
[1759193549406,0.03622,114650.0,114640.0,0.94705955]
[1759193549593,0.03622,114650.0,114640.0,0.03105955]
[1759193549800,0.03622,114640.0,114630.0,0.16458996]
[1759193550598,0.03622,114640.0,114630.0,1.03394765]
[1759193550794,0.01705,114650.0,114640.0,0.0871712]
[1759193551001,0.01305,114650.0,114640.0,0.45483464]
[1759193551316,0.03662,114650.0,114640.0,1.03343412]
[1759193551607,0.03662,114650.0,114640.0,1.03539412]
[1759193552203,0.03662,114650.0,114640.0,0.11823412]
[1759193552404,0.03662,114650.0,114640.0,1.03491412]
[1759193552596,0.03662,114650.0,114640.0,0.11823412]
[1759193553002,0.03622,114640.0,114630.0,0.11824072]
[1759193553201,0.03622,114640.0,114630.0,0.03106292]
[1759193553708,0.1233913,114640.0,114630.0,0.03106292]
[1759193554112,0.5233913,114640.0,114620.0,0.11824662]
[1759193554410,0.01205,114620.0,114610.0,1.03793943]
[1759193554610,0.01205,114620.0,114610.0,1.32817764]
[1759193555110,0.03522,114620.0,114610.0,0.03106292]
[1759193555308,0.43322,114620.0,114610.0,0.94730292]
[1759193555508,0.43322,114620.0,114610.0,1.03449702]
[1759193555715,0.43322,114620.0,114610.0,0.94730292]
[1759193556308,0.5204065,114620.0,114610.0,0.021]
[1759193556708,0.85700702,114620.0,114610.0,0.021]
[1759193558908,0.01305,114590.0,114580.0,0.64843602]
[1759193559111,0.03622,114590.0,114580.0,0.64843602]
[1759193560015,0.03622,114590.0,114580.0,0.67043602]
[1759193560211,0.01305,114590.0,114580.0,0.68443602]
[1759193560516,0.01305,114590.0,114580.0,1.02103654]
[1759193561013,0.01305,114590.0,114580.0,0.49087654]
[1759193561209,0.03622,114590.0,114580.0,1.06867602]
[1759193563414,0.03622,114590.0,114580.0,0.15427602]
[1759193563617,0.03622,114590.0,114580.0,0.036]
[1759193563823,0.46002982,114590.0,114580.0,0.036]
[1759193564210,0.03622,114590.0,114580.0,0.1232169]
[1759193566121,0.03662,114590.0,114580.0,0.1232169]
[1759193566816,0.10695027,114590.0,114580.0,0.1232169]
[1759193567218,0.08378027,114590.0,114580.0,0.45981742]
[1759193567521,0.08338027,114590.0,114580.0,0.45981742]
[1759193567817,0.50655027,114590.0,114580.0,0.036]
[1759193568018,0.59375997,114590.0,114580.0,0.04797934]
[1759193568220,0.93076049,114590.0,114580.0,0.02466311]
[1759193569114,0.1011774,114580.0,114570.0,0.02331623]
[1759193569314,0.03651,114570.0,114560.0,0.03116596]
[1759193569521,0.03551,114570.0,114560.0,0.03116596]
[1759193570018,0.03551,114570.0,114560.0,0.05447593]
[1759193570214,0.03551,114570.0,114560.0,0.05446655]
[1759193570417,0.45933552,114570.0,114560.0,0.02340438]
[1759193570611,0.139735,114570.0,114560.0,0.02440438]
[1759193570815,0.47633552,114570.0,114560.0,0.02440438]
[1759193571022,0.47633552,114570.0,114560.0,0.00110304]
[1759193571023,0.87633552,114570.0,114560.0,0.00110304]
[1759193571222,0.87633552,114570.0,114560.0,0.02440438]
[1759193571516,0.87633552,114570.0,114560.0,3.04e-06]
[1759193571915,0.1237502,114550.0,114540.0,0.02330134]
[1759193572110,0.46035072,114550.0,114530.0,0.05436426]
[1759193572315,0.03651,114540.0,114530.0,0.05436426]
[1759193572521,0.03658204,114540.0,114530.0,0.03106292]
[1759193573022,0.10725716,114540.0,114530.0,0.05435106]
[1759193573214,0.03658204,114540.0,114530.0,0.02328814]
[1759193573414,0.12382984,114540.0,114530.0,0.02328814]
[1759193573613,0.37318256,114540.0,114520.0,0.05435106]
[1759193573813,0.03651,114530.0,114520.0,0.03106292]
[1759193574022,0.03651,114530.0,114520.0,0.05434348]
[1759193574227,0.03651,114530.0,114520.0,0.02328056]
[1759193574719,0.01396,114520.0,114510.0,0.14160878]
[1759193574922,0.03651,114520.0,114510.0,0.14160878]
[1759193575122,0.03651,114520.0,114510.0,0.11054586]
[1759193575320,0.03651,114520.0,114510.0,0.02328056]
[1759193575521,0.03660503,114520.0,114510.0,0.42328056]
[1759193575823,0.01405503,114520.0,114510.0,0.51054296]
[1759193576017,0.08319288,114520.0,114510.0,0.4872624]
[1759193576318,9.503e-05,114520.0,114510.0,0.73760052]
[1759193576517,9.503e-05,114520.0,114510.0,0.82486312]
[1759193576719,0.00049503,114520.0,114510.0,0.82486312]
[1759193576920,0.03700503,114520.0,114510.0,0.001]
[1759193577121,0.12426003,114520.0,114510.0,0.001]
[1759193577425,0.03700503,114520.0,114510.0,0.001]
[1759193577825,0.03700503,114520.0,114510.0,0.0882626]
[1759193578027,0.03660503,114520.0,114510.0,0.001]
[1759193578222,0.03700503,114520.0,114510.0,0.001]
[1759193578821,0.10778304,114520.0,114510.0,0.001]
[1759193579027,0.03660503,114520.0,114510.0,0.0882626]
[1759193579226,0.01445503,114520.0,114510.0,0.4882626]
[1759193579424,0.00049503,114520.0,114510.0,0.4882626]
[1759193579726,0.00049503,114520.0,114510.0,0.51154316]
[1759193579931,0.03700503,114520.0,114510.0,0.02428056]
[1759193580330,0.46086055,114520.0,114510.0,0.001]
[1759193580625,0.12426003,114520.0,114510.0,0.001]
[1759193580832,0.03700503,114520.0,114510.0,0.001]
[1759193581024,0.19479376,114520.0,114510.0,0.001]
[1759193581218,0.12426003,114520.0,114510.0,0.001]
[1759193581622,0.86950016,114520.0,114510.0,0.001]
[1759193581822,0.0872703,114500.0,114490.0,0.02328056]
[1759193582023,0.03651,114490.0,114480.0,0.02328056]
[1759193582224,0.03651,114490.0,114480.0,0.11056606]
[1759193582426,0.1237879,114490.0,114480.0,0.02328056]
[1759193582624,0.01396,114480.0,114470.0,0.11068316]
[1759193582931,0.03551,114480.0,114470.0,0.11068316]
[1759193583230,0.10656562,114480.0,114470.0,0.14174608]
[1759193583531,0.01345929,114480.0,114470.0,0.54174608]
[1759193583717,0.01345929,114480.0,114470.0,0.8783466]
[1759193584116,0.01305929,114480.0,114470.0,0.8783466]
[1759193584330,0.01345929,114480.0,114470.0,0.8783466]
[1759193584627,9.929e-05,114480.0,114470.0,0.90142835]
[1759193584924,0.00049929,114480.0,114470.0,0.90142835]
[1759193585226,0.00049929,114480.0,114470.0,0.87036543]
[1759193585422,0.003,114480.0,114470.0,1.79020953]
[1759193585618,0.003,114480.0,114470.0,1.79036953]
[1759193585824,0.01396,114490.0,114480.0,0.0872862]
[1759193586128,0.03651,114490.0,114480.0,0.14165422]
[1759193586333,0.1237885,114490.0,114480.0,0.02330058]
[1759193586523,0.1237885,114490.0,114470.0,0.16483045]
[1759193586524,0.03651,114480.0,114470.0,0.14176872]
[1759193586723,0.03651,114480.0,114470.0,0.11070128]
[1759193587128,0.03651,114480.0,114470.0,0.14176872]
[1759193587426,0.03651,114480.0,114470.0,0.11070128]
[1759193587730,0.01996,114490.0,114480.0,0.0872862]
[1759193588030,0.01396,114500.0,114490.0,0.0872785]
[1759193588532,0.01396,114510.0,114500.0,0.0872709]
[1759193589025,0.03651,114510.0,114500.0,0.0872709]
[1759193589229,0.03651,114500.0,114490.0,0.14165096]
[1759193589424,0.1237808,114500.0,114490.0,0.11058722]
[1759193589630,0.1237808,114500.0,114490.0,0.02330882]
[1759193589928,0.01396,114490.0,114480.0,0.14166136]
[1759193590225,0.1237884,114490.0,114480.0,0.05437626]
[1759193590430,0.1237884,114490.0,114480.0,0.02330882]
[1759193590625,0.1237884,114490.0,114470.0,0.16483185]
[1759193590626,0.1237884,114490.0,114470.0,0.14177836]
[1759193590833,0.03651,114480.0,114470.0,0.14177836]
[1759193591329,0.1237959,114480.0,114470.0,0.05448916]
[1759193591533,0.86039642,114480.0,114470.0,0.02342172]
[1759193591731,0.86039642,114480.0,114470.0,0.0001129]
[1759193591928,0.86039642,114480.0,114470.0,2.9e-06]
[1759193592133,0.03651,114450.0,114440.0,0.02330882]
[1759193592330,0.02799118,114450.0,114440.0,0.03665011]
[1759193593033,0.02805629,114450.0,114440.0,0.03665011]
[1759193593423,0.85196511,114450.0,114440.0,0.01334129]
[1759193593627,0.85596511,114450.0,114440.0,0.01334129]
[1759193594132,0.03205629,114450.0,114440.0,0.01334129]
[1759193594329,0.03651,114430.0,114420.0,0.0903307]
[1759193594525,0.03659613,114430.0,114420.0,0.0903307]
[1759193595036,0.01391,114420.0,114410.0,0.11364522]
[1759193595237,0.01391,114420.0,114410.0,0.14471266]
[1759193595238,0.03547,114420.0,114410.0,0.14471266]
[1759193595435,8.613e-05,114430.0,114420.0,0.0903311]
[1759193595634,8.613e-05,114430.0,114420.0,0.45025931]
[1759193596038,0.01399613,114430.0,114420.0,0.12339854]
[1759193596241,0.01539613,114430.0,114420.0,0.47299906]
[1759193596435,0.00148613,114430.0,114420.0,0.47299906]
[1759193596933,0.00148613,114430.0,114420.0,0.87299906]
[1759193597134,0.00148613,114430.0,114420.0,0.88829393]
[1759193597135,0.00048613,114430.0,114420.0,0.88829393]
[1759193597324,0.00624118,114450.0,114440.0,0.090316]
[1759193597524,0.00624118,114450.0,114440.0,0.02632764]
[1759193597525,0.02700118,114450.0,114440.0,0.02632764]
[1759193597732,0.02740118,114450.0,114440.0,0.003]
[1759193597944,0.03547,114440.0,114430.0,0.05443116]
[1759193598125,0.12283108,114440.0,114430.0,0.02332764]
[1759193598436,0.03551508,114440.0,114430.0,0.02332764]
[1759193598636,0.03551508,114440.0,114430.0,0.11365124]
[1759193598836,0.01395508,114440.0,114430.0,0.11365124]
[1759193599433,0.00104508,114440.0,114430.0,0.85025176]
[1759193599937,0.00144508,114440.0,114430.0,0.85802764]
[1759193600728,0.01471,114460.0,114440.0,0.0873159]
[1759193600933,0.01471,114460.0,114450.0,0.0901583]
[1759193600934,0.0008,114460.0,114450.0,0.0901583]
[1759193601138,0.03586,114470.0,114460.0,0.0901507]
[1759193601435,0.03666,114470.0,114460.0,0.00285]
[1759193601635,0.01365,114460.0,114450.0,0.02334273]
[1759193601841,0.0356,114450.0,114440.0,0.75360645]
[1759193602035,0.0356,114450.0,114440.0,0.72250293]
[1759193602340,0.0356,114450.0,114440.0,0.12126372]
[1759193602539,0.0356,114450.0,114440.0,0.05731104]
[1759193602742,0.0356,114450.0,114440.0,0.02620752]
[1759193603043,0.0356,114450.0,114440.0,0.02335752]
[1759193603342,0.03805124,114450.0,114440.0,0.02335752]
[1759193603643,0.43805124,114450.0,114440.0,0.02335752]
[1759193604033,0.43505124,114450.0,114440.0,0.11067332]
[1759193604341,0.44205124,114450.0,114440.0,0.11067332]
[1759193604541,0.04205124,114450.0,114440.0,0.49977736]
[1759193604736,0.04205124,114450.0,114440.0,0.47641984]
[1759193605041,0.007,114450.0,114440.0,0.47641984]
[1759193605240,0.02105,114450.0,114440.0,0.47641984]
[1759193605839,0.0074,114450.0,114440.0,0.47641984]
[1759193606034,0.0074,114450.0,114440.0,0.90819649]
[1759193606434,0.0074,114450.0,114440.0,0.91591649]
[1759193606634,0.007,114450.0,114440.0,0.91591649]
[1759193606843,0.0074,114450.0,114440.0,1.83791649]
[1759193607535,0.007,114450.0,114440.0,1.78327632]
[1759193607735,0.0074,114450.0,114440.0,1.78327632]
[1759193608439,0.0074,114450.0,114440.0,0.59461767]
[1759193608744,0.0074,114450.0,114440.0,1.86113819]
[1759193609044,0.0074,114450.0,114440.0,0.93121819]
[1759193609345,0.0074,114450.0,114440.0,1.86101819]
[1759193609543,0.01398,114480.0,114470.0,0.1010234]
[1759193609741,0.01398,114480.0,114470.0,0.48441821]
[1759193609938,0.03593,114480.0,114470.0,0.07612238]
[1759193610145,0.03593,114480.0,114470.0,0.16341578]
[1759193610445,0.03593,114480.0,114470.0,0.58830904]
[1759193610637,0.00033,114480.0,114470.0,0.16341578]
[1759193610837,0.00033,114480.0,114470.0,0.16441578]
[1759193611037,0.00033,114480.0,114470.0,0.92691666]
[1759193611038,0.02533,114480.0,114470.0,0.92691666]
[1759193611237,0.02573,114480.0,114470.0,1.00509853]
[1759193611442,0.00073,114480.0,114470.0,1.00409853]
[1759193611643,0.00973,114480.0,114470.0,1.00409853]
[1759193611943,0.00973,114480.0,114470.0,1.93481853]
[1759193612145,0.00973,114480.0,114470.0,1.00409853]
[1759193612346,0.02338,114480.0,114470.0,1.10936527]
[1759193612543,0.02338,114480.0,114470.0,0.60409853]
[1759193612744,0.02338,114480.0,114470.0,1.00409853]
[1759193612946,0.04533,114480.0,114470.0,1.02171187]
[1759193613140,0.04533,114480.0,114470.0,1.0308234]
[1759193613343,0.02338,114480.0,114470.0,1.51807018]
[1759193613542,0.02338,114480.0,114470.0,1.45559666]
[1759193613741,0.02338,114480.0,114470.0,1.51782913]
[1759193613941,0.04533,114480.0,114470.0,0.58830913]
[1759193614240,0.04533,114480.0,114470.0,1.09277587]
[1759193614547,0.1326158,114480.0,114470.0,0.16341587]
[1759193614742,0.04533,114480.0,114470.0,0.16341587]
[1759193615244,0.04533,114480.0,114470.0,0.14782875]
[1759193615446,0.04533,114480.0,114470.0,0.57272201]
[1759193615746,0.1326158,114480.0,114470.0,0.14782875]
[1759193616150,0.04533,114480.0,114470.0,0.14782875]
[1759193616550,0.04533,114480.0,114470.0,0.57272201]
[1759193616739,0.04533,114480.0,114470.0,0.14782875]
[1759193616938,0.04533,114480.0,114470.0,0.06053535]
[1759193617143,0.04533,114480.0,114470.0,0.14782875]
[1759193618162,0.04533,114480.0,114470.0,0.57272201]
[1759193618656,0.02338,114480.0,114470.0,0.52591666]
[1759193619054,0.02298,114480.0,114470.0,0.52591666]
[1759193619256,0.00933,114480.0,114470.0,0.58830913]
[1759193619457,0.02338,114480.0,114470.0,0.58830913]
[1759193619657,0.02298,114480.0,114470.0,0.58830913]
[1759193619858,0.04493,114480.0,114470.0,0.58830913]
[1759193620057,0.04533,114480.0,114470.0,0.58830913]
[1759193620459,0.04533,114480.0,114470.0,0.14968587]
[1759193620657,0.0356,114470.0,114460.0,0.16341917]
[1759193620967,0.03505536,114470.0,114460.0,0.07620035]
[1759193621168,0.03505536,114470.0,114460.0,1.08990416]
[1759193621860,0.04805536,114470.0,114460.0,1.08990416]
[1759193622062,0.03505536,114470.0,114460.0,0.16350416]
[1759193622363,0.04105536,114470.0,114460.0,0.17117416]
[1759193623171,0.04105536,114470.0,114460.0,0.59606742]
[1759193623667,0.04105536,114470.0,114460.0,0.53359426]
[1759193623866,0.04105536,114470.0,114460.0,0.17117416]
[1759193624270,0.006,114470.0,114460.0,0.60332742]
[1759193624662,0.0064,114470.0,114460.0,0.54085426]
[1759193625063,0.0064,114470.0,114460.0,0.61903613]
[1759193625472,0.02005,114470.0,114460.0,1.53725613]
[1759193625974,0.0064,114470.0,114460.0,1.53725613]
[1759193626271,0.042,114470.0,114460.0,0.61177613]
[1759193626471,0.042,114470.0,114460.0,1.53657613]
[1759193626663,0.042,114470.0,114460.0,1.45839426]
[1759193626858,0.042,114470.0,114460.0,0.108701]
[1759193627064,0.042,114470.0,114460.0,1.033101]
[1759193627369,0.042,114470.0,114460.0,1.45799426]
[1759193627566,0.1292934,114470.0,114460.0,0.92416]
[1759193627765,0.1292934,114470.0,114460.0,0.06255357]
[1759193628265,0.042,114470.0,114460.0,0.17125457]
[1759193628459,0.042,114470.0,114460.0,0.50884683]
[1759193628460,0.0064,114470.0,114460.0,0.50884683]
[1759193628666,0.006,114470.0,114460.0,0.59614783]
[1759193628864,0.0064,114470.0,114460.0,0.59614783]
[1759193629667,0.0064,114470.0,114460.0,0.53359426]
[1759193630071,0.0064,114470.0,114460.0,0.59618351]
[1759193630474,0.00033,114480.0,114470.0,0.1162234]
[1759193630673,0.00113,114480.0,114470.0,1.52762623]
[1759193631175,0.03896,114500.0,114490.0,0.1084081]
[1759193631369,0.03896,114500.0,114490.0,0.15534121]
[1759193631669,0.10495008,114510.0,114500.0,0.1084005]
[1759193631871,0.03626,114510.0,114500.0,0.53329376]
[1759193632070,0.03546,114510.0,114500.0,0.53329376]
[1759193632266,0.03586,114510.0,114500.0,0.59587124]
[1759193632467,0.03546,114520.0,114510.0,0.1083929]
[1759193632667,0.03626,114520.0,114510.0,0.53328616]
[1759193632875,0.0008,114520.0,114510.0,1.51866364]
[1759193633168,0.01335,114530.0,114520.0,0.1083853]
[1759193633364,0.01335,114530.0,114520.0,0.59585604]
[1759193633565,0.03706,114540.0,114530.0,0.1083776]
[1759193633768,0.1227,114540.0,114530.0,0.06799027]
[1759193633972,0.1227,114540.0,114530.0,0.04686027]
[1759193634172,0.03586,114540.0,114530.0,0.11849154]
[1759193634770,0.03586,114540.0,114530.0,0.16535181]
[1759193634969,0.03586,114540.0,114530.0,0.18648181]
[1759193635275,0.01375,114540.0,114530.0,0.53327086]
[1759193635479,0.04246,114540.0,114530.0,0.15523787]
[1759193635670,0.0074,114540.0,114530.0,1.45563086]
[1759193635869,0.0074,114540.0,114530.0,1.46289086]
[1759193636178,0.0074,114540.0,114530.0,1.52546834]
[1759193636378,0.007,114540.0,114530.0,1.10057508]
[1759193636573,0.0074,114540.0,114530.0,0.60310834]
[1759193636875,0.0074,114540.0,114530.0,1.52590834]
[1759193637178,0.0194,114540.0,114530.0,1.92590834]
[1759193637371,0.0008,114550.0,114540.0,0.0872403]
[1759193637570,0.01335,114570.0,114560.0,0.092625]
[1759193637770,0.03546,114570.0,114560.0,0.14713279]
[1759193638277,0.03586,114570.0,114560.0,0.57200675]
[1759193638673,0.01375,114570.0,114560.0,0.57200783]
[1759193638875,0.0004,114570.0,114560.0,0.59938654]
[1759193639074,0.01335,114580.0,114570.0,0.0926174]
[1759193639273,0.01415,114580.0,114570.0,0.59528928]
[1759193639477,0.01415,114580.0,114570.0,0.54862211]
[1759193639972,0.03546,114580.0,114570.0,0.54862211]
[1759193640168,0.03586,114580.0,114570.0,0.54862211]
[1759193640566,0.03586,114580.0,114570.0,0.12772885]
[1759193640769,0.03586,114580.0,114570.0,0.55262211]
[1759193640966,0.0004,114580.0,114570.0,0.55262211]
[1759193641378,0.0004,114580.0,114570.0,0.96817783]
[1759193641574,0.01575,114600.0,114590.0,0.0926022]
[1759193641575,0.01335,114600.0,114590.0,0.0926022]
[1759193641772,0.01495,114610.0,114600.0,0.0925946]
[1759193641973,0.03546,114610.0,114600.0,0.02867291]
[1759193642173,0.03546,114610.0,114600.0,0.0054]
[1759193642373,0.123047,114610.0,114600.0,0.0054]
[1759193642573,0.03586,114610.0,114600.0,0.51748786]
[1759193642774,0.01375,114610.0,114600.0,0.51748786]
[1759193642975,0.01335,114620.0,114610.0,0.087187]
[1759193643174,0.01415,114620.0,114610.0,0.51748026]
[1759193643483,0.03546,114620.0,114610.0,0.51748026]
[1759193643674,0.03586,114620.0,114610.0,0.51748026]
[1759193643876,0.03586,114620.0,114610.0,0.092587]
[1759193644080,0.03586,114620.0,114610.0,0.51748026]
[1759193644277,0.03586,114620.0,114610.0,0.0054]
[1759193644477,0.03546,114600.0,114590.0,0.0926012]
[1759193644674,0.1005372,114610.0,114590.0,0.0926012]
[1759193644873,0.03546,114610.0,114600.0,0.0925946]
[1759193645683,0.03646,114610.0,114600.0,0.0925946]
[1759193645880,0.03646,114610.0,114600.0,0.51748786]
[1759193646279,0.03546,114610.0,114600.0,0.51748786]
[1759193646582,0.03646,114610.0,114600.0,0.51748786]
[1759193646782,0.123647,114610.0,114600.0,0.0925946]
[1759193646983,0.03646,114610.0,114600.0,0.0925946]
[1759193647384,0.03646,114610.0,114600.0,0.51748786]
[1759193647684,0.03646,114610.0,114600.0,0.0925946]
[1759193648089,0.05346,114610.0,114600.0,0.0925946]
[1759193648589,0.05301956,114610.0,114600.0,0.0925946]
[1759193648790,0.14020656,114610.0,114600.0,0.0925946]
[1759193649985,0.03546,114600.0,114590.0,1.43743146]
[1759193650175,0.1226546,114600.0,114590.0,0.0932982]
[1759193650383,0.03546,114590.0,114580.0,1.12279886]
[1759193650581,0.03546,114590.0,114580.0,0.6979056]
[1759193650977,0.03546,114590.0,114580.0,0.0933056]
[1759193651289,0.03546,114590.0,114580.0,1.0119456]
[1759193651783,0.03846,114590.0,114580.0,1.43683886]
[1759193651985,0.01635,114590.0,114580.0,1.43683886]
[1759193652377,0.01335,114590.0,114580.0,1.43683886]
[1759193652582,0.01935,114590.0,114580.0,1.43683886]
[1759193653285,0.1286622,114590.0,114580.0,1.43600306]
[1759193653884,0.04146,114590.0,114580.0,1.43600306]
[1759193654983,0.01935,114590.0,114580.0,1.43600306]
[1759193655582,0.01935,114590.0,114580.0,1.43400306]
[1759193656589,0.1065522,114590.0,114580.0,1.0091098]
[1759193656787,0.01935,114590.0,114580.0,1.43400306]
[1759193657489,0.006,114590.0,114580.0,1.83400306]
[1759193658090,0.0064,114590.0,114580.0,1.83400306]
[1759193658392,0.0064,114590.0,114580.0,1.85727597]
[1759193659291,0.0064,114590.0,114580.0,1.88830652]
[1759193659491,0.0064,114590.0,114580.0,1.85727597]
[1759193659793,0.0064,114590.0,114580.0,1.83400306]
[1759193659992,0.0064,114590.0,114580.0,1.85724757]
[1759193660189,0.0064,114590.0,114580.0,1.86491361]
[1759193660391,0.0064,114590.0,114580.0,1.46419361]
[1759193660392,0.04192,114590.0,114580.0,1.46419361]
[1759193660597,0.01923,114590.0,114580.0,1.46419361]
[1759193660794,0.0064,114590.0,114580.0,1.46419361]
[1759193661187,0.0064,114590.0,114580.0,1.51086078]
[1759193661392,0.0064,114590.0,114580.0,1.47983023]
[1759193662895,0.0064,114590.0,114580.0,0.56487023]
[1759193663095,0.04192,114590.0,114580.0,1.47967023]
[1759193663999,0.01923,114590.0,114580.0,1.47967023]
[1759193664499,0.01923,114590.0,114580.0,1.43300306]
[1759193665193,0.01923,114590.0,114580.0,1.49558054]
[1759193667302,0.01923,114590.0,114580.0,0.58078054]
[1759193667703,0.01923,114590.0,114580.0,1.49082054]
[1759193668099,0.04192,114590.0,114580.0,0.51820306]
[1759193668299,0.04192,114590.0,114580.0,1.49085469]
[1759193669793,0.04192,114590.0,114580.0,2.21245469]
[1759193670707,0.04192,114590.0,114580.0,1.78756143]
[1759193670904,0.04192,114590.0,114580.0,2.21245469]
[1759193671206,0.04192,114590.0,114580.0,2.21065469]
[1759193671403,0.01923,114590.0,114580.0,2.21065469]
[1759193671601,0.0064,114590.0,114580.0,2.61447469]
[1759193671908,0.0064,114590.0,114580.0,2.63020493]
[1759193672100,0.006,114590.0,114580.0,2.63020493]
[1759193672306,0.0064,114590.0,114580.0,2.54217672]
[1759193672607,0.006,114590.0,114580.0,2.54217672]
[1759193672811,0.0064,114590.0,114580.0,2.54217672]
[1759193673600,0.0064,114590.0,114580.0,2.20531167]
[1759193673801,0.0064,114590.0,114580.0,2.54217672]
[1759193674811,0.0064,114590.0,114580.0,2.53993672]
[1759193675617,0.0064,114590.0,114580.0,2.53965672]
[1759193675911,0.0064,114590.0,114580.0,1.63377672]
[1759193676113,0.0064,114590.0,114580.0,2.53965672]
[1759193676309,0.0064,114590.0,114580.0,1.63377672]
[1759193676505,0.0064,114590.0,114580.0,2.53929672]
[1759193679016,0.01290956,114610.0,114600.0,0.0871946]
[1759193679212,0.01290956,114610.0,114600.0,1.7119946]
[1759193679409,0.01290956,114610.0,114600.0,2.04885965]
[1759193680816,0.01330956,114610.0,114600.0,2.04885965]
[1759193681115,0.05399956,114610.0,114600.0,1.7111146]
[1759193681515,0.05399956,114610.0,114600.0,1.7107146]
[1759193681814,0.04799956,114610.0,114600.0,1.7107146]
[1759193682021,0.01330956,114610.0,114600.0,1.7107146]
[1759193682317,0.01330956,114610.0,114600.0,1.7157146]
[1759193682510,0.01330956,114610.0,114600.0,1.77823866]
[1759193682912,0.0004,114610.0,114600.0,2.05257965]
[1759193683111,0.08082057,114630.0,114620.0,0.0871794]
[1759193683406,0.01283,114630.0,114620.0,2.09348414]
[1759193683610,0.01283,114640.0,114630.0,0.0871718]
[1759193683817,0.01363,114640.0,114630.0,0.80826776]
[1759193684110,0.03552,114650.0,114640.0,0.0871642]
[1759193684309,0.03712,114660.0,114650.0,0.0871566]
[1759193684514,0.03552,114660.0,114650.0,0.78482165]
[1759193684811,0.03592,114660.0,114650.0,0.4479566]
[1759193685012,0.01323,114660.0,114650.0,0.78482165]
[1759193685215,0.0004,114660.0,114650.0,0.78482165]
[1759193685416,0.0004,114660.0,114650.0,0.80825256]
[1759193685616,0.06649448,114680.0,114670.0,0.0871414]
[1759193685816,0.06649448,114680.0,114670.0,1.3500614]
[1759193686016,0.06649448,114680.0,114670.0,1.7108614]
[1759193686320,0.03592,114680.0,114670.0,1.7108614]
[1759193686514,0.03592,114680.0,114670.0,0.8087414]
[1759193686817,0.03592,114680.0,114670.0,1.7104214]
[1759193687014,0.03592,114680.0,114670.0,0.8087414]
[1759193687216,0.03592,114680.0,114670.0,1.7101414]
[1759193687620,0.04292,114680.0,114670.0,1.7101414]
[1759193687814,0.04292,114680.0,114670.0,1.7100614]
[1759193688121,0.11226106,114680.0,114670.0,1.7100614]
[1759193688320,0.11226106,114680.0,114670.0,0.8087414]
[1759193688617,0.59939466,114680.0,114670.0,0.7216]
[1759193688822,0.03496,114670.0,114660.0,1.3485057]
[1759193689232,0.03496,114670.0,114660.0,0.4479457]
[1759193689529,0.03496,114670.0,114660.0,1.3487857]
[1759193690132,0.04396,114670.0,114660.0,1.3487857]
[1759193690632,0.03496,114670.0,114660.0,1.3487857]